bitfinex-derivatives/quotes_BNBF0:USTF0_20250305
["timestamp","ask_amount","ask_price","bid_price","bid_amount"]
[1741169685606,1.18743375,598.83,598.4,0.28031744]
[1741169686303,1.900288,599.02,598.4,0.28031744]
[1741169686500,2.59526434,599.01,598.4,0.28031744]
[1741169686803,0.33387309,599.03,598.4,0.28031744]
[1741169687104,2.59551497,599.02,598.4,0.28031744]
[1741169687305,0.33387309,599.03,598.41,0.2802694]
[1741169687598,3.78342452,599.02,598.42,0.2802694]
[1741169687803,1.18783859,599.02,598.4,0.2802694]
[1741169687998,1.18783859,599.01,598.41,0.2802694]
[1741169688200,1.18783859,599.01,598.4,0.2802694]
[1741169688401,1.18783859,599.0,598.42,0.2802694]
[1741169688599,1.18783859,599.0,598.43,0.2802694]
[1741169688799,0.33387309,599.03,598.4,0.2802694]
[1741169688998,2.59564558,599.02,598.41,0.28026914]
[1741169689204,0.33387309,599.03,598.4,0.28026914]
[1741169689400,1.18790332,599.01,598.41,0.28026914]
[1741169689599,1.18790332,599.01,598.42,0.28026914]
[1741169689802,1.18790332,599.01,598.43,0.28026914]
[1741169689998,1.18790332,599.01,598.4,0.28026914]
[1741169690298,1.18790332,599.0,598.4,0.28026914]
[1741169690603,0.33387309,599.03,598.39,0.265]
[1741169690804,2.59593395,599.02,598.4,0.28026845]
[1741169690999,2.13417827,599.01,598.4,0.28026845]
[1741169691197,0.94611124,599.0,598.4,0.28026845]
[1741169691399,1.1882147,599.01,598.4,0.28026845]
[1741169692002,1.1882147,599.0,598.4,0.28026845]
[1741169692401,0.33387309,599.03,598.4,0.28026845]
[1741169693911,1.18891122,599.02,598.4,0.28026845]
[1741169694110,1.18891122,599.02,598.18,0.28026845]
[1741169694310,1.18891122,599.02,598.19,0.28026845]
[1741169694503,1.18891122,599.02,598.2,0.28026845]
[1741169694706,0.33387309,599.03,598.18,0.28026845]
[1741169694904,0.33387309,599.03,598.19,0.28026845]
[1741169695104,0.33387309,599.03,598.18,0.28026845]
[1741169695305,0.33387309,599.03,598.19,0.28026845]
[1741169695507,0.33387309,599.03,598.2,0.28026845]
[1741169695811,0.33387309,599.03,598.21,0.28026845]
[1741169696008,0.33387309,599.03,598.18,0.28026845]
[1741169696212,0.33387309,599.03,598.19,0.28026845]
[1741169696412,0.33387309,599.03,598.18,0.28026845]
[1741169696612,0.33387309,599.03,598.19,0.28026845]
[1741169696806,0.33387309,599.03,598.2,0.28026845]
[1741169697010,0.33387309,599.03,598.21,0.28026845]
[1741169697212,0.33387309,599.03,598.22,0.28026845]
[1741169697410,0.33387309,599.03,598.19,0.29063334]
[1741169697608,0.33387309,599.03,598.2,0.28026845]
[1741169698014,1.1884059,599.02,598.2,0.28026845]
[1741169698713,0.33387309,599.03,598.2,0.28026845]
[1741169699615,0.33387309,599.03,598.21,0.28023614]
[1741169699815,0.33387309,599.03,598.22,0.28023614]
[1741169700015,0.33387309,599.03,598.23,0.28023614]
[1741169700216,0.33387309,599.03,598.24,0.28023614]
[1741169700411,0.33387309,599.03,598.21,0.29061392]
[1741169700609,0.33387309,599.03,598.22,0.28023614]
[1741169700810,0.33387309,599.03,598.23,0.28023614]
[1741169701014,0.33387309,599.03,598.24,0.28023614]
[1741169701210,0.33387309,599.03,598.25,0.28023614]
[1741169701410,0.33387309,599.03,598.26,0.28023614]
[1741169701614,0.33387309,599.03,598.37,1.22818455]
[1741169701811,0.33387309,599.03,598.38,0.28023614]
[1741169703218,0.33387309,599.03,598.39,0.28023614]
[1741169703418,0.33387309,599.03,598.4,0.28023614]
[1741169703718,0.33387309,599.03,598.41,0.28021448]
[1741169703914,0.33387309,599.03,598.42,0.28021448]
[1741169704117,0.33387309,599.03,598.43,0.28021448]
[1741169704316,0.33387309,599.03,598.4,0.28021448]
[1741169704517,0.33387309,599.03,598.41,0.28021448]
[1741169704718,0.33387309,599.03,598.42,0.28021448]
[1741169705018,0.33387309,599.03,598.43,0.28021448]
[1741169705320,0.33387309,599.03,598.44,0.28021448]
[1741169705517,0.33387309,599.03,598.39,0.265]
[1741169705518,0.33387309,599.03,598.4,0.28021448]
[1741169705824,0.33387309,599.03,598.41,0.28021448]
[1741169706120,0.33387309,599.03,598.39,0.265]
[1741169706121,0.33387309,599.03,598.42,0.28021448]
[1741169706319,0.29057024,599.25,598.39,0.265]
[1741169706520,2.59606945,599.24,598.39,0.265]
[1741169706719,2.59606945,599.23,598.39,0.265]
[1741169706919,2.59606945,599.22,598.39,0.265]
[1741169707117,2.59606945,599.21,598.39,0.265]
[1741169707313,2.59606945,599.2,598.39,0.265]
[1741169707514,1.18787817,599.21,598.4,0.28017282]
[1741169708217,0.2905472,599.33,598.4,0.28017282]
[1741169708414,2.59482371,599.32,598.4,0.28017282]
[1741169708615,2.59482371,599.31,598.4,0.28017282]
[1741169708919,3.78223156,599.3,598.4,0.28017282]
[1741169709117,3.78223156,599.3,598.39,0.265]
[1741169709118,1.18740785,599.3,598.41,0.28017282]
[1741169709323,1.18740785,599.3,598.42,0.28017282]
[1741169709623,4.65161652,599.59,598.43,0.28017282]
[1741169709819,3.09486445,599.58,598.44,0.28017282]
[1741169710014,4.9410117,599.57,598.45,0.28007798]
[1741169710216,7.24598224,599.56,598.45,0.28007798]
[1741169710419,7.24598224,599.55,598.46,0.28007798]
[1741169710621,6.74381396,599.54,598.47,0.28007798]
[1741169710817,9.83043451,599.53,598.48,0.28007798]
[1741169711018,6.74381396,599.52,598.49,0.28007798]
[1741169711222,6.74381396,599.51,598.5,0.28007798]
[1741169711421,4.10632743,599.5,598.51,0.28007798]
[1741169711622,2.59375257,599.49,598.39,0.265]
[1741169711824,2.59375257,599.48,598.4,0.28006613]
[1741169712127,2.59375257,599.47,598.41,0.28006613]
[1741169712327,1.18716175,599.46,598.42,0.28006613]
[1741169712521,1.18716175,599.46,598.43,0.28006613]
[1741169712721,0.29047687,599.47,598.44,0.28006613]
[1741169712921,0.29047687,599.47,598.45,0.28006613]
[1741169713121,0.29047687,599.47,598.46,0.28006613]
[1741169713323,0.29047687,599.47,598.47,0.28006613]
[1741169713521,0.29047687,599.47,598.48,0.28007009]
[1741169713725,0.29047687,599.47,598.49,0.28007009]
[1741169714839,0.29047687,599.47,598.5,0.28007009]
[1741169715131,0.29047687,599.47,598.45,1.22818455]
[1741169715132,1.8969298,599.55,598.51,0.28007009]
[1741169715330,0.62400198,599.57,598.52,0.28007009]
[1741169715530,2.59025919,599.56,598.53,0.28007009]
[1741169715731,2.59025919,599.55,598.54,0.28007009]
[1741169715926,0.94381472,599.54,598.55,0.28007009]
[1741169716128,2.12920392,599.53,598.56,0.28005059]
[1741169716334,1.1853892,599.53,598.57,0.28005059]
[1741169716537,1.1853892,599.53,598.58,0.28005059]
[1741169716831,0.62400198,599.57,598.59,0.28005059]
[1741169717035,0.94357702,599.56,598.6,0.28005059]
[1741169717236,0.62400198,599.57,598.61,0.28005059]
[1741169717435,0.94319701,599.56,598.62,0.28005059]
[1741169717633,0.62400198,599.57,598.63,0.28005059]
[1741169717935,3.77298927,599.56,598.64,0.28004057]
[1741169718134,0.94320712,599.55,598.65,0.28004057]
[1741169718336,0.94320712,599.55,598.46,1.22818455]
[1741169718337,1.1844771,599.55,598.66,0.28004057]
[1741169718537,1.1844771,599.55,598.67,0.28004057]
[1741169718735,0.94280334,599.54,598.68,0.28004057]
[1741169718935,1.1844771,599.55,598.69,0.28004057]
[1741169719133,0.94278076,599.54,598.7,0.28004057]
[1741169719336,0.62399956,599.57,598.71,0.28004057]
[1741169719532,2.58650098,599.56,598.51,0.28004057]
[1741169719737,2.58650098,599.55,598.52,0.28004057]
[1741169719937,0.62399956,599.57,598.53,0.28004057]
[1741169720138,0.62399956,599.57,598.54,0.28004057]
[1741169720334,0.62399956,599.57,598.5,0.29042717]
[1741169720335,0.62399956,599.57,598.55,0.28004057]
[1741169720542,0.62399956,599.57,598.56,0.28004057]
[1741169720735,0.62399956,599.57,598.57,0.28004057]
[1741169721033,0.62399956,599.57,598.58,0.28004057]
[1741169721336,0.33357239,599.57,598.59,0.27998781]
[1741169721538,0.33357239,599.57,598.6,0.27998781]
[1741169721737,0.33357239,599.57,598.53,0.29041505]
[1741169721738,0.33357239,599.57,598.61,0.27998781]
[1741169721932,0.33357239,599.57,598.62,0.27998781]
[1741169722137,0.33357239,599.57,598.63,0.27998781]
[1741169722337,0.33357239,599.57,598.64,0.27998781]
[1741169722532,0.33357239,599.57,598.65,0.27998781]
[1741169722739,0.33357239,599.57,598.66,0.27998781]
[1741169723038,0.33357239,599.57,598.67,0.27998781]
[1741169723235,0.33357239,599.57,598.68,0.27998781]
[1741169723635,0.33357239,599.57,598.69,0.27998781]
[1741169723837,0.33357239,599.57,598.7,0.27998781]
[1741169724139,0.33357239,599.57,598.71,0.27998781]
[1741169724339,0.33357239,599.57,598.72,0.27998781]
[1741169724538,0.33357239,599.57,598.73,0.27998781]
[1741169724735,0.33357239,599.57,598.74,0.27999195]
[1741169724942,0.33357239,599.57,598.75,0.27999195]
[1741169725239,0.33357239,599.57,598.76,0.27999195]
[1741169725436,0.33357239,599.57,598.77,0.27999195]
[1741169725633,0.33357239,599.57,598.78,0.27999195]
[1741169725834,0.33357239,599.57,598.61,0.27999195]
[1741169726034,0.33357239,599.57,598.62,0.27999195]
[1741169726238,0.33357239,599.57,598.63,0.27999195]
[1741169726440,0.33357239,599.57,598.61,0.27999195]
[1741169726641,0.33357239,599.57,598.62,0.27999195]
[1741169726939,0.33357239,599.57,598.63,0.27999195]
[1741169727139,0.33357239,599.57,598.64,0.27999195]
[1741169727336,0.33357239,599.57,598.29,0.27999195]
[1741169727537,0.33357239,599.57,598.61,0.29042959]
[1741169727740,0.33357239,599.57,598.62,0.27999195]
[1741169727940,0.33357239,599.57,598.32,0.27999195]
[1741169728149,0.33357239,599.57,598.33,0.27999195]
[1741169728443,0.33357239,599.57,598.34,0.61425006]
[1741169728642,0.33357239,599.57,598.35,0.27999195]
[1741169728843,0.33357239,599.57,598.36,0.61423889]
[1741169729055,0.33357239,599.57,598.37,0.6142333]
[1741169729246,0.33357239,599.57,598.38,0.61422771]
[1741169729445,0.33357239,599.57,598.39,0.61422213]
[1741169729646,0.33357239,599.57,598.4,0.61421654]
[1741169729849,0.33357239,599.57,598.41,0.61421096]
[1741169730151,0.33357239,599.57,598.42,0.61420537]
[1741169730348,0.33357239,599.57,598.43,0.61419979]
[1741169730650,0.33357239,599.57,598.44,0.6141942]
[1741169730845,0.33357239,599.57,598.35,0.29042232]
[1741169730846,0.33357239,599.57,598.45,0.61418862]
[1741169731042,0.33357239,599.57,598.46,0.61418304]
[1741169731346,0.33357239,599.57,598.47,0.61417745]
[1741169731550,0.33357239,599.57,598.48,0.33417992]
[1741169731742,0.33357239,599.57,598.49,0.27999195]
[1741169732946,0.93862472,599.56,598.49,0.27999195]
[1741169733243,0.33357239,599.57,598.49,0.27999195]
[1741169733447,0.29044656,599.55,598.49,0.27999195]
[1741169735052,0.29044656,599.55,598.5,0.28005529]
[1741169735257,0.29044656,599.55,598.51,0.28005529]
[1741169735555,0.29044656,599.55,598.52,0.28005529]
[1741169735746,0.29044656,599.55,598.49,0.28005529]
[1741169735950,0.29044656,599.55,598.5,0.28005529]
[1741169736148,0.33357239,599.57,598.51,0.28005529]
[1741169736344,0.29044535,599.54,598.52,0.28005529]
[1741169736549,0.29044535,599.54,598.53,0.28005529]
[1741169736750,0.29044535,599.54,598.54,0.28006052]
[1741169736950,0.29044535,599.54,598.49,0.28006052]
[1741169737153,0.29044535,599.54,598.48,0.33417992]
[1741169737154,0.29044535,599.54,598.5,0.28006052]
[1741169737448,0.29044535,599.54,598.51,0.28006052]
[1741169737653,0.29044535,599.54,598.52,0.28006052]
[1741169737849,0.29044535,599.54,598.49,0.28006052]
[1741169738054,0.93885186,599.53,598.5,0.28006052]
[1741169738251,0.93885186,599.53,598.51,0.28006052]
[1741169738252,0.93905266,599.52,598.51,0.28006052]
[1741169738451,2.91062042,599.51,598.49,0.28006052]
[1741169738658,2.91062599,599.5,598.5,0.28006052]
[1741169738852,1.27266956,599.49,598.51,0.28006052]
[1741169739052,0.93905266,599.48,598.49,0.28006052]
[1741169739257,0.93905266,599.47,598.5,0.28006052]
[1741169739449,0.3336169,599.49,598.48,0.33417992]
[1741169739450,0.93905266,599.46,598.49,0.28006052]
[1741169739650,0.29048172,599.48,598.5,0.28006052]
[1741169739849,2.57754581,599.47,598.49,0.28006052]
[1741169740154,0.93921974,599.46,598.5,0.28006052]
[1741169740355,0.93921974,599.45,598.51,0.28006052]
[1741169740550,0.93921974,599.45,598.48,0.33417992]
[1741169740551,0.93945611,599.44,598.49,0.28006052]
[1741169740750,0.93945611,599.43,598.5,0.28006052]
[1741169741052,6.70360904,599.42,598.51,0.28006052]
[1741169741252,7.20427234,599.41,598.5,1.22818455]
[1741169741551,6.70360904,599.4,598.51,0.28006052]
[1741169741749,6.70360904,599.39,598.51,0.28006052]
[1741169741951,4.08191245,599.38,598.52,0.28018383]
[1741169742152,4.08245504,599.37,598.53,0.28018383]
[1741169742348,2.11921013,599.36,598.51,0.28018383]
[1741169742663,1.47026241,599.36,598.52,0.28018383]
[1741169742852,1.47026241,599.36,598.53,0.28018383]
[1741169743050,1.47026241,599.36,598.54,0.28018383]
[1741169743256,0.29050839,599.36,598.55,0.28018383]
[1741169743463,0.29050839,599.36,598.56,0.28018383]
[1741169743756,1.18136935,599.35,598.57,0.28015609]
[1741169744057,1.18136935,599.35,598.58,0.28015609]
[1741169744256,0.94104821,599.34,598.43,0.28015609]
[1741169744456,0.94102025,599.33,598.44,0.28015609]
[1741169744653,1.18136935,599.34,598.43,0.28015609]
[1741169744858,2.1223929,599.33,598.44,0.28015609]
[1741169745155,0.94100466,599.32,598.48,1.22818455]
[1741169745356,0.29053871,599.32,598.49,0.28015609]
[1741169746555,0.29053871,599.32,598.44,0.28015609]
[1741169746857,0.29053871,599.32,598.45,0.28015609]
[1741169747058,0.29053871,599.32,598.46,0.28015609]
[1741169747357,0.29053871,599.32,598.47,0.28015609]
[1741169747557,0.29053871,599.32,598.46,0.28015609]
[1741169747751,0.29053871,599.32,598.47,0.28015609]
[1741169747955,0.29053871,599.32,598.46,0.28015609]
[1741169748156,1.88955498,599.41,598.47,0.28015609]
[1741169748356,2.58513182,599.4,598.46,0.28015609]
[1741169748654,0.29049869,599.37,598.47,0.28015609]
[1741169749054,0.29049869,599.37,598.45,0.265]
[1741169749254,0.29049869,599.37,598.46,0.28010691]
[1741169749460,0.29049869,599.37,598.47,0.28010691]
[1741169749657,0.29049869,599.37,598.48,0.28010691]
[1741169749857,0.29049869,599.37,598.46,0.28010691]
[1741169750159,0.29049869,599.37,598.47,0.28010691]
[1741169750360,0.29049869,599.37,598.61,1.22818455]
[1741169750858,0.29049869,599.37,598.62,0.28010691]
[1741169751259,2.58689346,599.55,598.62,0.28010691]
[1741169751456,0.29044171,599.43,598.62,0.28010691]
[1741169751759,2.12675291,599.53,598.62,0.28010691]
[1741169752060,1.18387409,599.53,598.62,0.28010691]
[1741169752458,1.18387409,599.52,598.63,0.28010691]
[1741169752757,1.18387409,599.52,598.64,0.28010691]
[1741169752959,0.29046232,599.51,598.52,0.28010691]
[1741169753158,1.47433641,599.51,598.53,0.28010691]
[1741169753354,1.47433641,599.51,598.54,0.28010691]
[1741169753555,1.47433641,599.51,598.52,0.28010691]
[1741169753760,1.47433641,599.51,598.53,0.28010691]
[1741169753953,1.47433641,599.51,598.52,0.28010691]
[1741169754152,1.18387409,599.51,598.53,0.28010691]
[1741169754353,1.18387409,599.51,598.54,0.28010691]
[1741169754559,0.29050354,599.5,598.55,0.28010691]
[1741169754759,0.29050354,599.5,598.53,0.28010691]
[1741169754961,0.29050354,599.5,598.54,0.28010691]
[1741169755159,0.29050354,599.5,598.55,0.28010691]
[1741169755460,0.29050354,599.5,598.56,0.28010691]
[1741169755756,2.58775869,599.49,598.57,0.28010691]
[1741169755961,2.58775869,599.48,598.53,0.28010691]
[1741169756260,3.77163278,599.47,598.54,0.28010691]
[1741169756461,2.58775869,599.46,598.55,0.28010691]
[1741169756661,4.09695411,599.45,598.56,0.28010691]
[1741169756862,6.72937075,599.44,598.53,0.28010691]
[1741169757064,6.72931354,599.43,598.53,0.28010691]
[1741169757259,9.80628036,599.42,598.54,0.28010691]
[1741169757459,6.72931354,599.41,598.46,0.28010691]
[1741169757654,6.72931354,599.4,598.47,0.28010691]
[1741169757859,6.72931354,599.39,598.46,0.28010691]
[1741169758058,3.07696682,599.41,598.47,0.28010691]
[1741169758059,6.72931354,599.38,598.47,0.28010691]
[1741169758262,4.0968828,599.37,598.46,0.28010691]
[1741169758456,2.58775869,599.36,598.47,0.28010691]
[1741169758661,3.77163278,599.35,598.46,0.28010691]
[1741169758862,2.58775869,599.34,598.47,0.28010691]
[1741169759058,1.18387409,599.35,598.46,0.28010691]
[1741169759265,1.18387409,599.33,598.47,0.28010691]
[1741169759463,1.18387409,599.33,598.48,0.28010691]
[1741169759661,1.18387409,599.33,598.46,0.28010691]
[1741169759866,1.18387409,599.33,598.47,0.28010691]
[1741169760067,1.18387409,599.33,598.46,0.28010691]
[1741169760267,0.50056134,599.61,598.47,0.28010691]
[1741169760466,0.29053022,599.45,598.48,0.28010691]
[1741169760666,0.29053022,599.45,598.45,0.29053022]
[1741169760667,2.59145251,599.44,598.46,0.28010691]
[1741169760862,2.59145251,599.43,598.47,0.28011358]
[1741169761067,1.18590344,599.44,598.46,0.28011358]
[1741169761068,2.59145251,599.42,598.46,0.28011358]
[1741169761264,2.59145251,599.42,598.45,0.29053022]
[1741169761265,2.59145251,599.41,598.47,0.28011358]
[1741169761468,2.59145251,599.4,598.48,0.28011358]
[1741169761672,2.59145251,599.4,598.45,0.29053022]
[1741169761673,1.18590344,599.39,598.46,0.28011358]
[1741169761869,1.18590344,599.39,598.47,0.28011358]
[1741169762073,1.18590344,599.39,598.48,0.28011358]
[1741169762275,1.18590344,599.38,598.49,0.28011358]
[1741169762870,0.29048172,599.45,598.49,0.28011358]
[1741169763073,2.59192675,599.44,598.49,0.28011358]
[1741169763274,2.59192675,599.43,598.49,0.28011358]
[1741169763576,3.77824201,599.42,598.49,0.28011358]
[1741169763773,2.59192675,599.41,598.49,0.28011358]
[1741169764075,1.18631526,599.42,598.49,0.28011358]
[1741169764271,1.64867362,599.77,598.5,0.28011358]
[1741169764473,1.89871926,599.73,598.49,0.28011358]
[1741169764669,0.9450439,599.72,598.5,0.28011358]
[1741169764976,1.6484346,599.71,598.51,0.28011358]
[1741169765277,2.59339156,599.7,598.6,1.22818455]
[1741169765474,2.59339156,599.69,598.6,1.22818455]
[1741169765675,0.94495696,599.68,598.61,0.28011358]
[1741169765875,2.59339156,599.67,598.62,0.28011358]
[1741169766077,2.59339156,599.66,598.63,0.28011358]
[1741169766271,2.59339156,599.66,598.61,0.28011358]
[1741169766272,2.59339156,599.65,598.61,0.28011358]
[1741169766470,2.59339156,599.64,598.62,0.28011358]
[1741169766778,2.59339156,599.63,598.63,0.28011358]
[1741169767076,2.59339156,599.63,598.68,1.22818455]
[1741169767077,2.59339156,599.62,598.68,1.22818455]
[1741169767274,2.59339156,599.61,598.69,0.28011358]
[1741169767473,2.59339156,599.6,598.69,0.28011358]
[1741169767670,3.78022659,599.59,598.69,0.28011358]
[1741169767980,2.59266562,599.58,598.69,0.28011358]
[1741169768169,2.59266562,599.57,598.69,0.28011358]
[1741169768374,1.18683503,599.57,598.69,0.28011358]
[1741169768778,1.18683503,599.56,598.69,0.28011358]
[1741169769169,1.18683503,599.56,598.49,0.28011358]
[1741169769369,1.18683503,599.56,598.5,0.28011358]
[1741169769574,1.18683503,599.55,598.48,0.265]
[1741169769772,1.18683503,599.55,598.49,0.28002589]
[1741169769977,0.9789494,600.01,598.49,0.28002589]
[1741169770178,6.74119234,599.77,598.49,0.28002589]
[1741169770373,6.74119234,599.76,598.49,0.28002589]
[1741169770574,6.74119234,599.75,598.49,0.28002589]
[1741169770771,9.82612089,599.74,598.49,0.28002589]
[1741169770972,6.74141019,599.73,598.49,0.28002589]
[1741169771173,2.59285007,599.72,598.49,0.28002589]
[1741169771374,5.67756077,599.71,598.49,0.28002589]
[1741169771577,2.59285007,599.7,598.64,1.22818455]
[1741169771774,2.59285007,599.69,598.65,0.28002589]
[1741169771975,4.10430726,599.68,598.65,0.28002589]
[1741169772178,2.59285007,599.67,598.65,0.28002589]
[1741169772379,5.67723983,599.66,598.65,0.28002589]
[1741169772579,2.59285007,599.65,598.65,0.28002589]
[1741169772779,3.08438976,599.66,598.65,0.28002589]
[1741169772780,3.77927726,599.64,598.65,0.28002589]
[1741169772982,2.59242906,599.63,598.65,0.28002589]
[1741169773180,2.59242906,599.62,598.84,1.22818455]
[1741169773384,2.5920534,599.61,598.85,0.28002589]
[1741169773580,2.5920534,599.6,598.85,0.28002589]
[1741169773777,2.5920534,599.59,598.85,0.28002589]
[1741169773979,2.5920534,599.58,598.85,0.28002589]
[1741169774177,1.18642719,599.57,598.85,0.28002589]
[1741169774578,6.04177277,599.75,598.85,0.28002589]
[1741169774787,6.73574793,599.74,598.85,0.28002589]
[1741169775083,6.73574793,599.73,598.84,1.22818455]
[1741169775282,6.73574793,599.72,598.84,1.22818455]
[1741169775584,6.73574793,599.71,598.84,1.22818455]
[1741169775785,7.23608441,599.7,598.85,0.28000657]
[1741169775985,6.73574793,599.69,598.86,0.28000657]
[1741169776184,6.73574793,599.68,598.87,0.28000657]
[1741169776379,6.73574793,599.67,598.88,0.28000657]
[1741169776586,6.73574793,599.66,598.89,0.28000657]
[1741169776785,9.81760676,599.65,598.9,0.28000657]
[1741169776995,4.10047689,599.64,598.83,0.28000657]
[1741169777286,3.08185883,599.65,598.82,1.22818455]
[1741169777287,2.59058898,599.63,598.82,1.22818455]
[1741169777483,2.59058898,599.62,598.83,0.28000741]
[1741169777687,2.59058898,599.61,598.84,0.28000741]
[1741169777885,2.59058898,599.6,598.85,0.28000741]
[1741169778086,0.94392108,599.59,598.86,0.28000741]
[1741169778293,0.29034842,599.68,598.87,0.28000741]
[1741169778595,3.77629115,599.67,598.88,0.28000741]
[1741169778892,2.59082553,599.66,598.89,0.28000741]
[1741169779094,3.77629115,599.65,598.9,0.28000741]
[1741169779293,1.18546562,599.65,598.91,0.28000741]
[1741169779489,1.18546562,599.65,598.79,0.28000741]
[1741169779687,1.18546562,599.64,598.8,0.28000741]
[1741169779890,1.18546562,599.64,598.81,0.28000741]
[1741169780088,1.18546562,599.64,598.82,0.28000741]
[1741169780287,4.1451157,599.73,598.83,0.28000741]
[1741169780490,6.73574892,599.72,598.84,0.28000741]
[1741169780688,9.81780329,599.71,598.85,0.28000741]
[1741169780889,2.59063322,599.7,598.86,0.28000741]
[1741169781092,2.59063322,599.69,598.87,0.28000741]
[1741169781288,3.77602694,599.68,598.88,0.28000741]
[1741169781489,2.59063322,599.67,598.89,0.28000741]
[1741169781691,2.59063322,599.66,598.9,0.28000741]
[1741169781888,0.98043222,599.87,598.7,1.22818455]
[1741169781889,3.77602694,599.65,598.71,0.28000741]
[1741169782095,1.18539372,599.65,598.72,0.28000741]
[1741169782296,2.59032349,599.64,598.73,0.28000741]
[1741169782492,0.9438233,599.63,598.74,0.28000741]
[1741169782688,0.94378069,599.62,598.75,0.28000741]
[1741169782890,4.14440828,599.7,598.76,0.28000741]
[1741169783090,7.23521564,599.69,598.77,0.28000741]
[1741169783291,6.73484219,599.68,598.71,0.28000741]
[1741169783601,7.56874835,599.67,598.72,0.28000741]
[1741169783800,7.23524256,599.66,598.7,1.22818455]
[1741169783995,7.23524256,599.65,598.71,0.28007098]
[1741169784193,10.65039739,599.64,598.71,0.28007098]
[1741169784392,7.56878157,599.63,598.71,0.28007098]
[1741169784593,10.31686394,599.62,598.71,0.28007098]
[1741169784899,7.23529923,599.61,598.71,0.28007098]
[1741169785099,7.05599665,599.6,598.55,1.22818455]
[1741169785293,6.72244095,599.59,598.56,0.28008812]
[1741169785496,5.22465795,599.58,598.59,0.29044656]
[1741169785695,5.55823034,599.57,598.6,0.28008812]
[1741169785995,8.63985728,599.56,598.6,0.28008812]
[1741169786200,5.22465795,599.55,598.6,0.28008812]
[1741169786502,8.30627933,599.54,598.6,0.28008812]
[1741169786692,5.22379536,599.53,598.6,0.28008812]
[1741169786896,4.48628091,599.52,598.6,0.28008812]
[1741169787104,2.58989852,599.51,598.6,0.28008812]
[1741169787303,5.22396228,599.5,598.41,0.28008812]
[1741169787503,5.22396228,599.49,598.59,0.2904502]
[1741169787700,5.22396228,599.49,598.42,0.28008812]
[1741169787701,8.30558366,599.48,598.42,0.28008812]
[1741169787897,2.58989852,599.47,598.43,0.28008812]
[1741169788097,2.58989852,599.46,598.43,0.28008812]
[1741169788305,2.58989852,599.45,598.44,0.28008812]
[1741169788503,2.58989852,599.44,598.44,0.2904902]
[1741169788698,2.58989852,599.43,598.45,0.28008812]
[1741169788897,3.08162138,599.46,598.45,0.28008812]
[1741169788898,2.58989852,599.42,598.45,0.28008812]
[1741169789207,2.58989852,599.41,598.45,0.28008812]
[1741169789403,2.58989852,599.4,598.45,0.28008812]
[1741169789605,2.58989852,599.39,598.45,0.28008812]
[1741169789900,2.58989852,599.38,598.46,0.27953979]
[1741169790101,2.58989852,599.37,598.45,0.27953979]
[1741169790312,2.58989852,599.36,598.46,0.27953979]
[1741169790505,5.22192012,599.35,598.45,0.29051324]
[1741169790703,0.29051324,599.37,598.45,0.29051324]
[1741169790704,5.22192012,599.34,598.46,0.27953979]
[1741169790904,5.22192012,599.33,598.46,0.27953979]
[1741169791101,5.22192012,599.32,598.46,0.27953979]
[1741169791300,5.22192012,599.31,598.46,0.27953979]
[1741169791499,3.07988206,599.33,598.45,0.29051324]
[1741169791500,5.22192012,599.3,598.45,0.29051324]
[1741169791706,5.22192012,599.29,598.55,1.22818455]
[1741169791901,5.22192012,599.28,598.56,0.27961305]
[1741169792101,5.22192012,599.27,598.56,0.27961305]
[1741169792302,2.58989852,599.26,598.56,0.27961305]
[1741169792604,2.58989852,599.25,598.56,0.27961305]
[1741169792802,2.58989852,599.24,598.56,0.27961305]
[1741169793003,2.58989852,599.23,598.56,0.27961305]
[1741169793206,2.58989852,599.22,598.55,1.22818455]
[1741169793403,2.58989852,599.21,598.56,0.27961566]
[1741169793608,2.58989852,599.2,598.57,0.27961566]
[1741169793807,1.18523899,599.2,598.46,0.27961566]
[1741169794005,0.94220477,599.19,598.47,0.27961566]
[1741169794204,1.18523899,599.2,598.48,0.27961566]
[1741169794402,1.18523899,599.18,598.46,0.27961566]
[1741169794609,1.18523899,599.18,598.47,0.27961566]
[1741169794811,1.18523899,599.18,598.46,0.27961566]
[1741169795010,1.18523899,599.18,598.47,0.27960076]
[1741169795205,0.29053749,599.3,598.46,0.27960076]
[1741169795406,0.29053749,599.3,598.48,0.27960076]
[1741169795611,0.29053749,599.3,598.49,0.27960076]
[1741169795813,0.29053749,599.3,598.46,0.27960076]
[1741169796105,0.29053749,599.3,598.47,0.27960076]
[1741169796310,0.29053749,599.3,598.45,0.29053386]
[1741169796311,4.13697359,599.44,598.48,1.50778531]
[1741169796506,6.72250831,599.43,598.49,0.27960076]
[1741169796811,0.29048535,599.39,598.5,0.27956009]
[1741169797006,0.29048535,599.39,598.51,0.27956009]
[1741169797209,0.29048535,599.39,598.52,0.27956009]
[1741169797407,0.29048535,599.39,598.53,0.27956009]
[1741169797607,0.29048535,599.39,598.54,0.27956009]
[1741169797806,0.29048535,599.39,598.55,0.27956009]
[1741169798016,0.29048535,599.39,598.49,0.27956009]
[1741169798206,0.29048535,599.39,598.5,0.27956009]
[1741169798509,0.29048535,599.39,598.51,0.27953678]
[1741169798706,0.29048535,599.39,598.52,0.27953678]
[1741169798906,0.29048535,599.39,598.53,0.27953678]